bitfinex/quotes_BTCUSD_20240908
["timestamp","ask_amount","ask_price","bid_price","bid_amount"]
[1725792314661,0.15477118,54752.0,54747.0,0.1424]
[1725792314870,0.15477118,54752.0,54748.0,0.0594]
[1725792315563,0.15477118,54752.0,54748.0,0.0593]
[1725792315773,0.05477118,54752.0,54748.0,0.0587]
[1725792316411,0.05477118,54751.0,54748.0,0.0587]
[1725792316669,0.15477118,54751.0,54748.0,0.0587]
[1725792316881,0.15477118,54751.0,54748.0,0.0617]
[1725792317791,0.15477118,54751.0,54749.0,0.0815]
[1725792318015,0.20954236,54751.0,54749.0,0.0815]
[1725792318459,0.10954236,54750.0,54749.0,0.0815]
[1725792318730,0.20954236,54750.0,54749.0,0.0815]
[1725792318977,0.1,54750.0,54749.0,0.0815]
[1725792319399,0.20954236,54750.0,54749.0,0.0815]
[1725792319616,0.1,54750.0,54749.0,0.0815]
[1725792320047,0.1,54750.0,54749.0,0.0875]
[1725792320266,0.1,54750.0,54749.0,0.0855]
[1725792320504,0.1,54750.0,54749.0,0.0885]
[1725792321176,0.20972416,54750.0,54749.0,0.0885]
[1725792321397,0.1,54750.0,54749.0,0.0885]
[1725792321612,0.20973435,54750.0,54749.0,0.0885]
[1725792321850,0.23837483,54750.0,54749.0,0.0885]
[1725792322074,0.23837666,54750.0,54749.0,0.0885]
[1725792322289,0.12863843,54750.0,54749.0,0.0885]
[1725792322552,0.26556638,54750.0,54749.0,0.0885]
[1725792324508,0.12863843,54750.0,54749.0,0.0885]
[1725792324729,0.16584928,54750.0,54749.0,0.0885]
[1725792324952,0.23840222,54750.0,54749.0,0.0885]
[1725792325244,0.3756127,54750.0,54749.0,0.1533]
[1725792325484,0.26584928,54750.0,54749.0,0.1533]
[1725792325733,0.12863843,54750.0,54749.0,0.1533]
[1725792326173,0.02863843,54750.0,54749.0,0.1533]
[1725792328913,0.1658958,54750.0,54749.0,0.1533]
[1725792329139,0.2658958,54750.0,54749.0,0.1533]
[1725792330923,0.23725737,54750.0,54749.0,0.1533]
[1725792332673,0.1,54750.0,54749.0,0.1533]
[1725792332828,0.000816,54751.0,54749.0,0.1533]
[1725792332994,0.13725282,54750.0,54749.0,0.1533]
[1725792333218,0.1,54750.0,54749.0,0.1503]
[1725792333431,0.23725189,54750.0,54749.0,0.1503]
[1725792333633,0.10980151,54751.0,54749.0,0.0815]
[1725792333831,0.004,54750.0,54749.0,0.0815]
[1725792334073,0.11498982,54750.0,54749.0,0.0815]
[1725792334467,0.11098982,54750.0,54749.0,0.0815]
[1725792335802,0.21098982,54750.0,54749.0,0.0815]
[1725792336684,0.18235113,54750.0,54749.0,0.0815]
[1725792336908,0.08235113,54750.0,54749.0,0.0815]
[1725792337357,0.08235113,54750.0,54749.0,0.0825]
[1725792341529,0.1,54751.0,54749.0,0.0825]
[1725792341741,0.00200589,54750.0,54749.0,0.0825]
[1725792341949,0.00200589,54750.0,54749.0,0.001]
[1725792341950,0.10930589,54750.0,54749.0,0.001]
[1725792343058,0.00930589,54750.0,54748.0,0.001632]
[1725792343266,0.1,54749.0,54748.0,0.001632]
[1725792344407,0.26666471,54749.0,54748.0,0.001632]
[1725792345720,0.29395411,54749.0,54748.0,0.001632]
[1725792346128,0.29595411,54749.0,54748.0,0.001632]
[1725792346343,0.29995411,54749.0,54748.0,0.001632]
[1725792346565,0.29993851,54749.0,54748.0,0.001632]
[1725792348371,0.1352953,54749.0,54748.0,0.001632]
[1725792351053,0.16464321,54750.0,54748.0,0.001632]
[1725792351054,0.13715332,54750.0,54748.0,0.001632]
[1725792352412,0.14215332,54750.0,54748.0,0.001632]
[1725792353117,0.1,54749.0,54748.0,0.001632]
[1725792355133,0.103,54749.0,54748.0,0.001632]
[1725792357783,0.003,54749.0,54748.0,0.001632]
[1725792358670,0.003,54749.0,54745.0,0.001632]
[1725792358920,0.002,54745.0,54741.0,0.00163]
[1725792359167,0.08228103,54742.0,54741.0,0.00163]
[1725792359374,0.11700804,54744.0,54736.0,0.00163]
[1725792359375,0.1,54743.0,54736.0,0.00163]
[1725792359599,0.08226925,54737.0,54736.0,0.00163]
[1725792359883,0.20969234,54738.0,54736.0,0.00163]
[1725792360315,0.10969234,54737.0,54736.0,0.00163]
[1725792360534,0.20969234,54737.0,54736.0,0.00163]
[1725792360960,0.1,54737.0,54736.0,0.00463]
[1725792361178,0.1,54737.0,54736.0,0.00163]
[1725792361605,0.0073,54739.0,54736.0,0.00263]
[1725792361821,0.13707837,54737.0,54736.0,0.00263]
[1725792362022,0.23707837,54737.0,54736.0,0.00263]
[1725792362488,0.20963495,54737.0,54736.0,0.06723]
[1725792362698,0.21563495,54737.0,54736.0,0.14883]
[1725792363376,0.21563495,54737.0,54736.0,0.14783]
[1725792363590,0.106,54737.0,54736.0,0.14783]
[1725792363859,0.105,54737.0,54736.0,0.14683]
[1725792364495,0.19119805,54737.0,54736.0,0.14683]
[1725792364717,0.18619805,54737.0,54736.0,0.14683]
[1725792364926,0.18919805,54737.0,54736.0,0.14683]
[1725792365734,0.08919805,54737.0,54736.0,0.14683]
[1725792367463,0.03396315,54737.0,54736.0,0.14683]
[1725792369862,0.05960935,54737.0,54736.0,0.14683]
[1725792370084,0.05560935,54737.0,54736.0,0.14683]
[1725792370360,0.05760935,54737.0,54736.0,0.14683]
[1725792370559,0.06060935,54737.0,54736.0,0.14683]
[1725792370786,0.05560935,54737.0,54736.0,0.14683]
[1725792371003,0.05660935,54737.0,54736.0,0.14683]
[1725792371229,0.05860935,54737.0,54736.0,0.14683]
[1725792371865,0.05660935,54737.0,54736.0,0.14683]
[1725792372085,0.05560935,54737.0,54736.0,0.14683]
[1725792373269,0.05560935,54737.0,54736.0,0.14883]
[1725792373497,0.05660935,54737.0,54736.0,0.14883]
[1725792373985,0.05560935,54737.0,54736.0,0.14883]
[1725792374467,0.05560935,54737.0,54736.0,0.15183]
[1725792376567,0.02696315,54737.0,54736.0,0.15183]
[1725792376802,0.1,54739.0,54736.0,0.15183]
[1725792377035,0.18214203,54740.0,54737.0,0.1444]
[1725792377262,0.18214203,54740.0,54738.0,0.0646]
[1725792378160,0.18414203,54740.0,54738.0,0.0646]
[1725792378798,0.18514203,54740.0,54738.0,0.0646]
[1725792379023,0.21156926,54740.0,54738.0,0.0646]
[1725792379451,0.08214203,54739.0,54738.0,0.0646]
[1725792379667,0.18214203,54739.0,54738.0,0.0646]
[1725792379886,0.21078707,54739.0,54738.0,0.0646]
[1725792381213,0.21078707,54739.0,54738.0,0.0656]
[1725792381884,0.21078707,54739.0,54738.0,0.0646]
[1725792383222,0.21078707,54739.0,54738.0,0.0656]
[1725792383436,0.12864504,54739.0,54738.0,0.0656]
[1725792383862,0.21083716,54739.0,54738.0,0.0656]
[1725792384062,0.12864504,54739.0,54738.0,0.0656]
[1725792384265,0.21083716,54739.0,54738.0,0.0656]
[1725792384480,0.29303766,54739.0,54738.0,0.0656]
[1725792384711,0.21084554,54739.0,54738.0,0.0656]
[1725792386299,0.12864504,54739.0,54738.0,0.0656]
[1725792387451,0.20960067,54739.0,54738.0,0.0656]
[1725792389082,0.08224948,54740.0,54738.0,0.0656]
[1725792389555,0.08225316,54740.0,54738.0,0.0656]
[1725792390015,0.08225316,54739.0,54738.0,0.0646]
[1725792390241,0.08425316,54740.0,54738.0,0.0646]
[1725792390475,0.08225316,54739.0,54738.0,0.0646]
[1725792390710,0.08525316,54740.0,54738.0,0.0646]
[1725792390973,0.08225316,54739.0,54738.0,0.0646]
[1725792391214,0.1,54739.0,54737.0,0.0798]
[1725792391678,0.08226453,54738.0,54737.0,0.0798]
[1725792391889,0.1,54738.0,54737.0,0.0798]
[1725792393012,0.1,54739.0,54737.0,0.0798]
[1725792393216,0.08226743,54738.0,54737.0,0.0798]
[1725792393476,0.20967088,54739.0,54737.0,0.0808]
[1725792393944,0.20967088,54739.0,54737.0,0.0798]
[1725792394171,0.1,54739.0,54737.0,0.0808]
[1725792394396,1.407696,54738.0,54737.0,0.0808]
[1725792394632,1.507696,54738.0,54737.0,0.0798]
[1725792394876,1.506696,54738.0,54737.0,0.0798]
[1725792395571,1.58897465,54738.0,54737.0,0.0798]
[1725792396201,1.506696,54738.0,54737.0,0.0798]
[1725792396422,1.508696,54738.0,54737.0,0.0798]
[1725792397067,1.509696,54738.0,54737.0,0.0798]
[1725792402290,1.53834,54738.0,54737.0,0.0798]
[1725792403060,1.509696,54738.0,54737.0,0.0798]
[1725792405125,1.53834075,54738.0,54737.0,0.0798]
[1725792405584,1.53834075,54738.0,54737.0,0.1455]
[1725792406513,1.509696,54738.0,54737.0,0.1455]
[1725792407189,1.509696,54738.0,54737.0,0.147132]
[1725792409853,1.53834213,54738.0,54737.0,0.147132]
[1725792416700,1.509696,54738.0,54737.0,0.147132]
[1725792417140,1.53834197,54738.0,54737.0,0.147132]
[1725792417554,1.53634197,54738.0,54737.0,0.147132]
[1725792418452,1.53607567,54738.0,54737.0,0.147132]
[1725792418673,1.5074297,54738.0,54737.0,0.147132]
[1725792418896,1.5064297,54738.0,54737.0,0.147132]
[1725792419144,1.5094297,54738.0,54737.0,0.147132]
[1725792419366,1.5074297,54738.0,54737.0,0.147132]
[1725792419594,1.5074297,54738.0,54737.0,0.151132]
[1725792419801,1.5064297,54738.0,54737.0,0.151132]
[1725792420004,1.5064297,54738.0,54737.0,0.156132]
[1725792420214,1.53507585,54738.0,54737.0,0.156132]
[1725792421832,1.53507585,54738.0,54737.0,0.085432]
[1725792422054,1.53507585,54738.0,54737.0,0.081432]
[1725792422269,1.53907585,54738.0,54737.0,0.081432]
[1725792422503,1.54307585,54738.0,54737.0,0.081432]
[1725792425019,1.53507585,54738.0,54737.0,0.081432]
[1725792425248,1.53907585,54738.0,54737.0,0.081432]
[1725792425508,1.54307585,54738.0,54737.0,0.081432]
[1725792426633,1.5144297,54738.0,54737.0,0.081432]
[1725792426868,1.54307585,54738.0,54737.0,0.081432]
[1725792428569,1.5144297,54738.0,54737.0,0.081432]
[1725792428996,1.5144297,54738.0,54737.0,0.145132]
[1725792430081,1.54307599,54738.0,54737.0,0.145132]
[1725792434453,1.707884,54738.0,54737.0,0.145132]
[1725792435121,1.54307599,54738.0,54737.0,0.145132]
[1725792435539,1.54307599,54738.0,54737.0,0.081432]
[1725792435782,1.70794048,54738.0,54737.0,0.081432]
[1725792436956,1.67929419,54738.0,54737.0,0.081432]
[1725792437200,1.70794566,54738.0,54737.0,0.081432]
[1725792437433,1.54307627,54738.0,54737.0,0.081432]
[1725792437908,1.54307627,54738.0,54737.0,0.147232]
[1725792438166,1.70794495,54738.0,54737.0,0.147232]
[1725792438414,1.67929838,54738.0,54737.0,0.147232]
[1725792439056,1.5144297,54738.0,54737.0,0.147232]
[1725792439273,1.67929838,54738.0,54737.0,0.147232]
[1725792439928,1.7079444,54738.0,54737.0,0.147232]
[1725792442110,1.4521814,54738.0,54737.0,0.147232]
[1725792442330,1.28731272,54738.0,54737.0,0.147232]
[1725792442983,1.28812872,54738.0,54737.0,0.147232]
[1725792443188,1.45298997,54738.0,54737.0,0.147232]
[1725792443745,1.44898997,54738.0,54737.0,0.147232]
[1725792444600,1.44498997,54738.0,54737.0,0.148232]
[1725792444809,1.44598997,54738.0,54737.0,0.147232]
[1725792445229,1.44898997,54738.0,54737.0,0.147232]
[1725792446682,1.42034395,54738.0,54737.0,0.147232]
[1725792447919,1.42034789,54738.0,54737.0,0.147232]
[1725792448142,1.44899349,54738.0,54737.0,0.147232]
[1725792452880,1.4489934,54738.0,54737.0,0.147232]
[1725792455232,1.7047564,54738.0,54737.0,0.147232]
[1725792458461,1.6761108,54738.0,54737.0,0.147232]
[1725792460255,1.70475649,54738.0,54737.0,0.147232]
[1725792464407,1.662492,54737.0,54736.0,1e-06]
[1725792464616,0.383686,54732.0,54731.0,0.00163]
[1725792464833,0.9116374,54732.0,54731.0,0.00163]
[1725792465057,1.50685,54732.0,54731.0,0.00163]
[1725792465281,1.53549971,54732.0,54731.0,0.00163]
[1725792465487,1.70030079,54732.0,54731.0,0.00163]
[1725792465933,1.70030079,54732.0,54731.0,0.00563]
[1725792465934,1.53549971,54732.0,54731.0,0.00563]
[1725792466626,1.70025815,54732.0,54731.0,0.00563]
[1725792466854,1.70025815,54732.0,54731.0,0.00163]
[1725792467066,1.71225815,54732.0,54731.0,0.00263]
[1725792468136,1.71225815,54732.0,54731.0,0.00363]
[1725792468137,1.71625815,54732.0,54731.0,0.00363]
[1725792468362,1.70425815,54732.0,54731.0,0.00263]
[1725792468589,1.53949971,54732.0,54731.0,0.00263]
[1725792468805,1.54649971,54732.0,54731.0,0.00363]
[1725792469020,1.54249971,54732.0,54731.0,0.00263]
[1725792469233,1.54649971,54732.0,54731.0,0.00363]
[1725792470579,1.57324552,54732.0,54731.0,0.00363]
[1725792474338,1.56624552,54732.0,54731.0,0.00263]
[1725792474549,1.56224552,54732.0,54731.0,0.00163]
[1725792474746,1.57324552,54732.0,54731.0,0.00363]
[1725792475190,1.57324552,54732.0,54731.0,0.00263]
[1725792475418,1.57024552,54732.0,54731.0,0.00263]
[1725792475631,1.57724552,54732.0,54731.0,0.00363]
[1725792476728,1.54859581,54732.0,54731.0,0.00363]
[1725792477777,1.54859581,54732.0,54731.0,0.06383]
[1725792478192,1.57724496,54732.0,54731.0,0.06383]
[1725792482439,1.57724496,54732.0,54731.0,0.14143]
[1725792483339,1.32145396,54732.0,54731.0,0.14143]
[1725792484689,1.31445396,54732.0,54731.0,0.14043]
[1725792484913,1.31445396,54732.0,54731.0,0.13943]
[1725792484914,1.30645396,54732.0,54731.0,0.13943]
[1725792485103,1.31145396,54732.0,54731.0,0.13943]
[1725792485555,1.30945396,54732.0,54731.0,0.13943]
[1725792485837,1.30645396,54732.0,54731.0,0.14343]
[1725792486057,1.30645396,54732.0,54731.0,0.14143]
[1725792486281,1.27780481,54732.0,54731.0,0.14143]
[1725792486496,1.27780481,54732.0,54731.0,0.14343]
[1725792486966,1.3600729,54732.0,54731.0,0.14343]
[1725792487213,1.27780481,54732.0,54731.0,0.14343]
[1725792487432,1.38749589,54732.0,54731.0,0.14143]
[1725792487635,1.4149183,54732.0,54731.0,0.14343]
[1725792487842,1.27780481,54732.0,54731.0,0.14143]
[1725792488054,1.38949885,54732.0,54731.0,0.14143]
[1725792488271,1.38949885,54732.0,54731.0,0.13943]
[1725792488505,1.38749885,54732.0,54731.0,0.13943]
[1725792488727,1.41614718,54732.0,54731.0,0.14143]
[1725792488940,1.41614718,54732.0,54731.0,0.14043]
[1725792489183,1.41614718,54732.0,54731.0,0.13943]
[1725792489412,1.41814718,54732.0,54731.0,0.13943]
[1725792489650,1.41614718,54732.0,54731.0,0.13943]
[1725792490094,1.41696318,54732.0,54731.0,0.13943]
[1725792490560,1.41896318,54732.0,54731.0,0.13943]
[1725792491023,1.42096318,54732.0,54731.0,0.13943]
[1725792491702,1.42097853,54732.0,54731.0,0.13943]
[1725792493020,1.31126914,54732.0,54731.0,0.13943]
[1725792495452,1.44840588,54732.0,54731.0,0.13943]
[1725792495669,1.31126914,54732.0,54731.0,0.13943]
[1725792495898,1.44842893,54732.0,54731.0,0.13943]
[1725792496370,1.31126914,54732.0,54731.0,0.13943]
[1725792496816,1.42099689,54732.0,54731.0,0.13943]
[1725792497263,1.39234856,54732.0,54731.0,0.13943]
[1725792497724,1.38834856,54732.0,54731.0,0.13943]
[1725792497936,1.39034856,54732.0,54731.0,0.13943]
[1725792498146,1.39234856,54732.0,54731.0,0.13943]
[1725792498353,1.38834856,54732.0,54731.0,0.13943]
[1725792498778,1.38834856,54732.0,54731.0,0.14543]
[1725792499828,1.27862081,54732.0,54731.0,0.14543]
[1725792500033,1.36092372,54732.0,54731.0,0.14543]
[1725792505701,1.27862081,54732.0,54731.0,0.14543]
[1725792506818,1.38838598,54732.0,54731.0,0.14543]
[1725792507040,1.27862081,54732.0,54731.0,0.14543]
[1725792507264,1.30726854,54732.0,54731.0,0.14243]
[1725792507521,1.30726854,54732.0,54731.0,0.14443]
[1725792507720,1.30726854,54732.0,54731.0,0.14143]
[1725792507944,1.44442833,54732.0,54731.0,0.13943]
[1725792508179,1.30726854,54732.0,54731.0,0.13943]
[1725792509544,1.44442833,54732.0,54731.0,0.13943]
[1725792509779,1.30726854,54732.0,54731.0,0.13943]
[1725792509994,1.44442833,54732.0,54731.0,0.13943]
[1725792510194,1.44642833,54732.0,54731.0,0.13943]
[1725792510421,1.30926854,54732.0,54731.0,0.13943]
[1725792511069,1.31126854,54732.0,54731.0,0.13943]
[1725792511625,1.44842833,54732.0,54731.0,0.13943]
[1725792511859,1.44642833,54732.0,54731.0,0.13943]
[1725792512075,1.44842833,54732.0,54731.0,0.13943]
[1725792512531,1.44642833,54732.0,54731.0,0.13943]
[1725792512996,1.44842833,54732.0,54731.0,0.13943]
[1725792514212,1.4197806,54732.0,54731.0,0.13943]
[1725792514833,1.28262081,54732.0,54731.0,0.13943]
[1725792515053,1.39241086,54732.0,54731.0,0.13943]
[1725792519468,1.39041086,54732.0,54731.0,0.13943]
[1725792519683,1.39041086,54732.0,54731.0,0.14143]
[1725792520317,1.38841086,54732.0,54731.0,0.13943]
[1725792520561,1.38841086,54732.0,54731.0,0.14443]
[1725792521223,1.38841086,54732.0,54731.0,0.14743]
[1725792521640,1.27862081,54732.0,54731.0,0.14743]
[1725792524707,1.4157806,54732.0,54731.0,0.14743]
[1725792526455,1.44442804,54732.0,54731.0,0.14743]
[1725792526666,1.4157806,54732.0,54731.0,0.14743]
[1725792528471,1.27862081,54732.0,54731.0,0.14743]
[1725792530182,1.30726792,54732.0,54731.0,0.14743]
[1725792530860,1.27862081,54732.0,54731.0,0.14743]
[1725792532419,1.30726779,54732.0,54731.0,0.14743]
[1725792536665,1.27862081,54732.0,54731.0,0.14743]
[1725792539080,1.41598748,54732.0,54731.0,0.14243]
[1725792539938,1.44463814,54732.0,54731.0,0.14243]
[1725792540569,1.28624333,54732.0,54731.0,0.14243]
[1725792541492,1.39614277,54732.0,54731.0,0.14243]
[1725792541725,1.36749592,54732.0,54731.0,0.14243]
[1725792542800,1.25759648,54732.0,54731.0,0.14243]
[1725792543237,1.36749592,54732.0,54731.0,0.14243]
[1725792543657,1.36749592,54732.0,54731.0,0.0856]
[1725792544090,1.39614465,54732.0,54731.0,0.0856]
[1725792544537,1.151104,54730.0,54729.0,0.063232]
[1725792544742,1.33354084,54730.0,54729.0,0.001632]
[1725792547413,1.33354084,54730.0,54729.0,0.002632]
[1725792547638,1.33354084,54730.0,54729.0,0.003632]
[1725792548632,1.33354084,54730.0,54729.0,0.065232]
[1725792550834,1.123204,54730.0,54729.0,0.065232]
[1725792551051,1.15185209,54730.0,54729.0,0.065232]
[1725792551955,1.27975209,54730.0,54729.0,0.065232]
[1725792555426,1.38967348,54730.0,54729.0,0.065232]
[1725792556537,1.36102539,54730.0,54729.0,0.065232]
[1725792558051,1.251104,54730.0,54729.0,0.01930522]
[1725792558531,1.36102539,54730.0,54729.0,0.01930522]
[1725792559581,1.38967351,54730.0,54729.0,0.01930522]
[1725792561136,1.38967351,54730.0,54729.0,0.001632]
[1725792561364,1.39048951,54730.0,54729.0,0.001632]
[1725792561586,1.28056812,54730.0,54729.0,0.001632]
[1725792564475,1.53636912,54730.0,54729.0,0.001632]
[1725792564912,1.54036912,54730.0,54729.0,0.001632]
[1725792565124,1.53836912,54730.0,54729.0,0.001632]
[1725792565334,1.53636912,54730.0,54729.0,0.001632]
[1725792565560,1.54136912,54730.0,54729.0,0.001632]
[1725792566629,1.25692,54730.0,54729.0,0.001632]
[1725792566833,1.26192,54730.0,54729.0,0.083432]
[1725792567460,1.25692,54730.0,54729.0,0.083432]
[1725792568504,1.26192,54730.0,54729.0,0.083432]
[1725792569591,1.29056916,54730.0,54729.0,0.083432]
[1725792578780,1.26192,54730.0,54729.0,0.083432]
[1725792580735,1.29056924,54730.0,54729.0,0.083432]
[1725792581156,1.26192,54730.0,54729.0,0.083432]
[1725792582774,1.29056942,54730.0,54729.0,0.083432]
[1725792587032,1.26192,54730.0,54729.0,0.083432]
[1725792587895,1.25692,54730.0,54729.0,0.083432]
[1725792588320,1.26092,54730.0,54729.0,0.083432]
[1725792588533,1.25692,54730.0,54729.0,0.083432]
[1725792588739,1.25192,54730.0,54729.0,0.083432]
[1725792588943,1.25592,54730.0,54729.0,0.085432]
[1725792589359,1.28456958,54730.0,54729.0,0.083432]
[1725792589569,1.28056958,54730.0,54729.0,0.083432]
[1725792590400,1.28056958,54730.0,54729.0,0.084432]
[1725792590602,1.28056958,54730.0,54729.0,0.085432]
[1725792594213,1.53637058,54730.0,54729.0,0.085432]
[1725792597544,1.507721,54730.0,54729.0,0.085432]
[1725792598008,1.507721,54730.0,54729.0,0.148732]
[1725792599165,1.53637113,54730.0,54729.0,0.148732]
[1725792600286,1.28057013,54730.0,54729.0,0.148732]
[1725792601260,1.16209133,54730.0,54729.0,0.148732]
[1725792601496,1.02476913,54730.0,54729.0,0.148732]
[1725792601735,1.10715906,54730.0,54729.0,0.147732]
[1725792601967,0.59555706,54730.0,54729.0,0.147732]
[1725792602178,0.51516713,54730.0,54729.0,0.147732]
[1725792602657,0.51316713,54730.0,54729.0,0.147732]
[1725792603072,0.51316713,54730.0,54729.0,0.148732]
[1725792603324,0.25736613,54730.0,54729.0,0.148732]
[1725792603568,0.41316713,54730.0,54729.0,0.148732]
[1725792604666,0.51316713,54730.0,54729.0,0.147732]
[1725792604877,0.51416713,54730.0,54729.0,0.159732]
[1725792605111,0.51316713,54730.0,54729.0,0.146732]
[1725792605327,0.51416713,54730.0,54729.0,0.155732]
[1725792605554,0.25936613,54730.0,54729.0,0.169732]
[1725792605776,0.25836613,54730.0,54729.0,0.160732]
[1725792605998,0.25936613,54730.0,54729.0,0.169732]
[1725792606453,0.25836613,54730.0,54729.0,0.155732]
[1725792606682,0.229716,54730.0,54729.0,0.155732]
[1725792607633,0.229716,54730.0,54729.0,0.169732]
[1725792612101,0.101816,54730.0,54729.0,0.169732]
[1725792612356,0.129716,54730.0,54729.0,0.169732]
[1725792612611,0.229716,54730.0,54729.0,0.169732]
[1725792613753,0.001816,54730.0,54729.0,0.55709288]
[1725792613977,0.001816,54730.0,54729.0,0.81289788]
[1725792614230,0.001816,54730.0,54729.0,0.81489788]
[1725792614471,0.001816,54730.0,54729.0,0.81289788]
[1725792615383,0.001816,54730.0,54729.0,0.81489788]
[1725792616076,0.001816,54730.0,54729.0,0.169732]
[1725792616289,0.001816,54730.0,54729.0,0.297634]
[1725792617845,0.02864397,54748.0,54730.0,0.1414]
[1725792618056,0.127894,54733.0,54730.0,0.1414]
[1725792618489,0.127894,54733.0,54729.0,0.152534]
[1725792618724,0.255781,54735.0,54729.0,0.152534]
[1725792618725,0.127898,54732.0,54731.0,0.0614]
[1725792618951,0.127898,54732.0,54731.0,0.1414]
[1725792620372,0.383686,54732.0,54731.0,0.1414]
[1725792621053,0.383686,54732.0,54731.0,0.1524]
[1725792621281,0.384686,54732.0,54731.0,0.1524]
[1725792621529,0.384686,54732.0,54731.0,0.1654]
[1725792621741,0.383686,54732.0,54731.0,0.1544]
[1725792621966,0.383686,54732.0,54731.0,0.1414]
[1725792622196,0.384686,54732.0,54731.0,0.1634]
[1725792622665,0.383686,54732.0,54731.0,0.1524]
[1725792623516,0.384686,54732.0,54731.0,0.1634]
[1725792623953,0.640477,54732.0,54731.0,0.1634]
[1725792624168,0.640477,54732.0,54731.0,0.1524]
[1725792624379,0.640477,54732.0,54731.0,0.1654]
[1725792624565,0.641477,54732.0,54731.0,0.1654]
[1725792624805,0.640477,54732.0,54731.0,0.1414]
[1725792625056,0.640477,54732.0,54731.0,0.1534]
[1725792625283,0.642477,54732.0,54731.0,0.1674]
[1725792625496,0.66760715,54732.0,54731.0,0.1554]
[1725792625937,0.66860715,54732.0,54731.0,0.1674]
[1725792626386,0.66860715,54732.0,54731.0,0.1554]
[1725792626593,0.66560715,54732.0,54731.0,0.1414]
[1725792626807,0.66660715,54732.0,54731.0,0.1534]
[1725792627027,0.66760715,54732.0,54731.0,0.1674]
[1725792628395,0.66560715,54732.0,54731.0,0.1414]
[1725792628608,0.66760715,54732.0,54731.0,0.1664]
[1725792630848,0.385686,54732.0,54731.0,0.1664]
[1725792637068,0.129895,54732.0,54731.0,0.1664]
[1725792637286,0.129895,54732.0,54731.0,0.29795179]
[1725792637287,0.002,54732.0,54731.0,0.29795179]
[1725792637993,0.002,54732.0,54731.0,0.17168379]
[1725792644193,0.002,54732.0,54731.0,0.81117379]
[1725792644411,0.002,54732.0,54731.0,0.55537779]
[1725792647310,0.002,54732.0,54731.0,0.55737779]
[1725792649500,0.002,54732.0,54731.0,0.55537779]
[1725792651604,0.002,54732.0,54731.0,0.55637779]
[1725792651818,0.002,54732.0,54731.0,0.55737779]
[1725792652025,0.002,54732.0,54731.0,0.58837779]
[1725792652236,0.002,54732.0,54731.0,0.84417379]
[1725792652927,0.001,54732.0,54731.0,0.83317379]
[1725792653317,0.001,54732.0,54731.0,0.83217379]
[1725792653516,0.001,54732.0,54731.0,0.83017379]
[1725792653961,0.000815,54735.0,54734.0,0.525973]
[1725792654082,0.000815,54735.0,54734.0,0.524973]
[1725792654982,0.000815,54735.0,54734.0,0.523973]
[1725792656813,0.000815,54735.0,54734.0,0.551973]
[1725792659048,0.000815,54735.0,54734.0,0.296191]
[1725792659273,0.000815,54735.0,54734.0,0.2998443]
[1725792662909,0.000815,54735.0,54734.0,0.2858443]
[1725792663124,0.000815,54735.0,54734.0,0.2718443]
[1725792663326,0.000815,54735.0,54734.0,0.2858443]
[1725792663540,0.000815,54735.0,54734.0,0.2998443]
[1725792664710,0.000815,54735.0,54734.0,0.2718443]
[1725792665149,0.000815,54735.0,54734.0,0.2858443]
[1725792665584,0.000815,54735.0,54734.0,0.1739533]
[1725792666499,0.38448,54735.0,54734.0,0.1083]
[1725792673134,0.640257,54735.0,54734.0,0.1083]
[1725792673346,0.38448,54735.0,54734.0,0.1083]
[1725792674425,0.640257,54735.0,54734.0,0.1083]
[1725792674659,0.640257,54735.0,54734.0,0.10993]
[1725792675087,0.38448,54735.0,54734.0,0.10993]
[1725792676676,0.640257,54735.0,54734.0,0.10993]
[1725792677105,0.38448,54735.0,54734.0,0.10993]
[1725792678919,0.640257,54735.0,54734.0,0.10993]
[1725792679138,0.38448,54735.0,54734.0,0.10993]
[1725792682236,0.640257,54735.0,54734.0,0.10993]
[1725792684959,0.255777,54735.0,54734.0,0.10993]
[1725792685191,0.383665,54735.0,54734.0,0.10993]
[1725792685639,0.639442,54735.0,54734.0,0.10993]
[1725792687646,0.383665,54735.0,54734.0,0.10993]
[1725792688092,0.640257,54735.0,54734.0,0.10993]
[1725792690949,0.38448,54735.0,54734.0,0.10993]
[1725792691167,0.38448,54735.0,54734.0,0.17593]
[1725792691395,0.640257,54735.0,54734.0,0.17593]
[1725792691917,0.38448,54735.0,54734.0,0.17593]
[1725792693199,0.41312287,54735.0,54734.0,0.17593]
[1725792694054,0.66889987,54735.0,54734.0,0.17593]
[1725792694804,0.41312287,54735.0,54734.0,0.17593]
[1725792696600,0.38448,54735.0,54734.0,0.17593]
[1725792698347,0.640257,54735.0,54734.0,0.17593]
[1725792698557,0.38448,54735.0,54734.0,0.17593]
[1725792700385,0.640257,54735.0,54734.0,0.17593]
[1725792701038,0.66889995,54735.0,54734.0,0.17593]
[1725792701473,0.41312295,54735.0,54734.0,0.17593]
[1725792701710,0.66889995,54735.0,54734.0,0.17593]
[1725792701929,0.66889995,54735.0,54734.0,0.10993]
[1725792704424,0.41312295,54735.0,54734.0,0.10993]
[1725792705419,0.66889995,54735.0,54734.0,0.10993]
[1725792705614,0.41312295,54735.0,54734.0,0.10993]
[1725792706719,0.640257,54735.0,54734.0,0.10993]
[1725792708657,0.38448,54735.0,54734.0,0.10993]
[1725792709704,0.41312289,54735.0,54734.0,0.10993]
[1725792710380,0.66889989,54735.0,54734.0,0.10993]
[1725792711752,0.66889989,54735.0,54734.0,0.02963]
[1725792715300,0.66889989,54735.0,54734.0,0.09543]
[1725792716571,0.640257,54735.0,54734.0,0.09543]
[1725792717234,0.640257,54735.0,54734.0,0.17863]
[1725792724101,0.128703,54735.0,54734.0,0.17863]
[1725792726716,0.38448,54735.0,54734.0,0.17863]
[1725792727994,0.640257,54735.0,54734.0,0.02963]
[1725792729574,0.66889977,54735.0,54734.0,0.02963]
[1725792732468,0.92467677,54735.0,54734.0,0.02963]
[1725792739871,0.66889977,54735.0,54734.0,0.17423]